[Event "44th Chess Olympiad Open 2022"]
[Site "Chennai"]
[Date "2022.07.29"]
[Round "1.11"]
[White "Sadhwani, Raunak"]
[Black "Abdulrahman Mohammad, Al Taher"]
[Result "1-0"]
[WhiteElo "2611"]
[BlackElo "2029"]
[Annotator "TA"]
[PlyCount "71"]
[EventDate "2022.??.??"]
[TimeControl "60"]

{[%evp 22,71,51,48,58,62,68,48,66,46,47,46,49,49,52,44,50,52,52,41,54,52,56,51,
50,58,66,75,81,43,133,116,143,143,143,147,760,296,1039,995,1213,1164,29976,
29977,29977,29978,29969,5622,5614,5614,5605,5597]} 1. e4 {[%emt 0:00:02]} c5 {
[%emt 0:00:11]} 2. Nf3 {[%emt 0:00:05]} Nc6 {[%emt 0:00:18]} 3. d4 {[%emt 0:00:
00]} cxd4 {[%emt 0:00:09]} 4. Nxd4 {[%emt 0:00:03]} g6 {[%emt 0:00:36]} 5. c4 {
[%emt 0:00:06]} Nf6 {[%emt 0:00:39]} 6. Nc3 {[%emt 0:00:04]} Nxd4 {[%emt 0:00:
00]} 7. Qxd4 {[%emt 0:00:08]} d6 {[%emt 0:00:23]} 8. Be3 {[%emt 0:00:23]} Bg7 {
[%emt 0:00:56]} 9. Be2 {[%emt 0:00:12]} O-O {[%emt 0:00:50]} 10. Qd3 {[%emt 0:
00:00]} Be6 {[%emt 0:09:00]} 11. Bd4 {[%emt 0:01:20]} Qa5 {[%emt 0:06:43]} 12.
O-O {[%emt 0:00:13]} Rfc8 {[%emt 0:11:12] B36: Sicilian: Maroczy Bind:
Gurgenidze System.} 13. b3 {[%emt 0:00:19]} Nd7 {[%emt 0:05:00]} 14. Bxg7 {
[%emt 0:00:25]} Kxg7 {[%emt 0:00:01] White is slightly better.} 15. Kh1 {
[%emt 0:00:51]} (15. f4 {is more complex.} f6 16. Rab1 a6 17. a4) 15... a6 {
[%emt 0:10:35][%cal Yb7b5]} 16. f4 {[%emt 0:00:19] Threatens to win with f5.}
f6 {[%emt 0:08:49][%cal Yb7b5]} 17. a4 {[%emt 0:10:38] Against b5} Nc5 {
[%emt 0:17:29][%csl Yb3,Yd3]} 18. Qc2 {[%emt 0:00:06]} Qb4 {[%emt 0:00:39]} 19.
Rab1 {[%emt 0:02:33] [#]} a5 $146 {[%emt 0:02:31]} ({Predecessor:} 19... b5 20.
axb5 axb5 21. Nxb5 d5 22. Nd4 dxc4 23. Nxe6+ Nxe6 24. Bxc4 Nd4 25. Qd3 Rd8 26.
Bd5 Ra2 {½-½ (26) Vorobyov,Y (2252)-Sarkoezy,B (2090) Plzen 2012}) 20. h3 {
[%emt 0:04:36]} Qb6 {[%emt 0:11:25]} 21. Bg4 $1 {[%emt 0:00:42]} Bxg4 {[%emt 0:
03:37]} 22. hxg4 {[%emt 0:00:39]} Rf8 {[%emt 0:06:25]} 23. Rf3 {[%emt 0:02:21]}
(23. Nd5 {is interesting.} Qc6 24. f5 g5 25. Rf3) 23... Na6 {[%emt 0:02:04]}
24. Nd5 {[%emt 0:02:43]} Qd8 {[%emt 0:00:14]} 25. Qd2 {[%emt 0:00:00]} Nc7 {
[%emt 0:01:27]} ({Black should try} 25... e6 $14 26. Nc3 Nc5) 26. Re1 {[%emt 0:
00:37] 0x0.0005eb374562dp-1022s more active pieces.} Nxd5 {[%emt 0:01:10]} 27.
exd5 {[%emt 0:00:05]} Qd7 {[%emt 0:00:21]} 28. Re6 {[%emt 0:00:06]} f5 $2 {
[%emt 0:00:38] [#] Black cannot hold the game after this.} (28... Rf7 $16 29.
f5 g5) 29. Qe1 $2 {[%emt 0:00:24]} (29. Rfe3) 29... Rae8 {[%emt 0:00:24]} (
29... fxg4 30. Rxe7+ Qxe7 31. Qxe7+ Rf7 32. Qxd6 gxf3 33. Qe5+ Kg8) 30. Rfe3
$18 {[%emt 0:00:13][%cal Re6e7]} Rf7 {[%emt 0:00:00]} 31. gxf5 {[%emt 0:00:05]}
gxf5 {[%emt 0:00:38]} 32. Rg3+ {[%emt 0:00:00]} Kf8 {[%emt 0:00:06]} 33. Qc3 {
[%emt 0:00:07][%cal Rc3h8]} Rf6 {[%emt 0:00:00]} 34. Rxf6+ {[%emt 0:00:05]}
exf6 {[%emt 0:00:04]} 35. Qxf6+ {[%emt 0:00:05]} Qf7 {[%emt 0:00:41]} 36. Qh6+
{[%emt 0:00:05] Weighted Error Value: White=0.51/Black=0.58} 1-0

[Event "44th Chess Olympiad Open 2022"]
[Site "Chennai"]
[Date "2022.07.29"]
[Round "1.11"]
[White "Al Hosani, Omran"]
[Black "Gukesh D"]
[Result "0-1"]
[WhiteElo "2215"]
[BlackElo "2684"]
[Annotator "TA"]
[PlyCount "82"]
[EventDate "2022.??.??"]
[TimeControl "60"]

{[%evp 10,82,41,46,54,0,0,0,0,0,29,3,27,17,35,-11,15,10,10,14,9,0,0,-89,-70,
-64,0,-40,0,-69,-76,-76,-76,-74,-37,-99,-85,-89,-88,-113,-102,-102,-102,-95,
-107,-115,-115,-115,-114,-113,-108,-136,-125,-154,-148,-159,-152,-182,-166,
-237,-222,-262,-298,-280,-272,-673,-681,-1798,-1574,-1919,-1919,-3325,-3194,
-2786,-2608]} 1. d4 {[%emt 0:00:03]} Nf6 {[%emt 0:00:48]} 2. c4 {[%emt 0:00:21]
} g6 {[%emt 0:01:54]} 3. Nc3 {[%emt 0:00:12]} Bg7 {[%emt 0:00:06]} 4. e4 {
[%emt 0:00:08]} d6 {[%emt 0:00:04]} 5. Be2 {[%emt 0:00:28]} O-O {[%emt 0:00:08]
} 6. Be3 {[%emt 0:00:07]} Na6 {[%emt 0:04:46] E73: King's Indian: Averbakh
Variation without 6...c5.} 7. g4 {[%emt 0:01:03]} ({Better is} 7. Nf3 $14) 7...
c5 $1 $11 {[%emt 0:05:36][%cal Yf6g4] Hoping for ...Nxg4!} 8. d5 {[%emt 0:00:
00]} e6 {[%emt 0:00:50] The position is equal.} 9. g5 {[%emt 0:03:49]} Nh5 {
[%emt 0:01:03]} 10. Qd2 {[%emt 0:03:22] [#]} f5 $146 {[%emt 0:07:49] Strongly
threatening ...f4.} ({Predecessor:} 10... b5 11. cxb5 Nc7 12. dxe6 Bxe6 13.
O-O-O a6 14. b6 Nb5 15. Bxb5 axb5 16. Qxd6 Qc8 {0-1 (30) Pratyusha,B (2247)
-Paehtz,E (2468) Caleta 2017}) 11. Bxh5 {[%emt 0:02:54][%cal Ye4f5] Black must
now prevent exf5!} gxh5 {[%emt 0:00:09]} 12. Nge2 {[%emt 0:01:06]} (12. exf5 $1
$14 Rxf5 13. Nge2) 12... e5 {[%emt 0:06:00] ...f4 is the strong threat.} 13.
exf5 {[%emt 0:00:58]} Bxf5 {[%emt 0:00:19]} 14. Ng3 {[%emt 0:00:07]} Bg6 $36 {
[%emt 0:00:40][%cal Ye5e4] Black has the initiative.} 15. Nge4 {[%emt 0:00:53]}
Qd7 {[%emt 0:00:35]} 16. O-O-O {[%emt 0:02:32]} (16. Qe2 $11 {keeps the
balance.}) 16... Nb4 {[%emt 0:06:35][%cal Yb4a2]} 17. b3 {[%emt 0:00:00]} Kh8 {
[%emt 0:25:36]} (17... b5 $15 18. Qe2 (18. a3 $2 bxc4 19. bxc4 Rab8 $19) 18...
bxc4 19. Qxc4 a5) 18. Kb2 {[%emt 0:01:55]} Na6 {[%emt 0:08:43][%cal Yb7b5,
Yb4a6,Ya6c7,Yc7e8,Ye8g7,Yg7f5]} (18... a5 $5 {[%cal Ra5a4]} 19. a3 b5 20. cxb5
(20. axb4 axb4 21. cxb5 bxc3+ 22. Nxc3 e4 $19) 20... a4 $1 21. axb4 cxb4 $11)
19. Nf6 {[%emt 0:07:19]} (19. Qe2 $11) 19... Bxf6 $15 {[%emt 0:00:00]} 20. gxf6
{[%emt 0:00:06]} Rxf6 {[%emt 0:00:04]} 21. a3 {[%emt 0:02:09] Prevents Nb4.}
Raf8 {[%emt 0:00:50]} 22. Rdf1 {[%emt 0:06:54]} (22. Bh6 $15) 22... Rf3 $17 {
[%emt 0:04:08]} 23. Rhg1 {[%emt 0:01:46]} Nc7 {[%emt 0:00:28] Black is more
active.} 24. Rg3 {[%emt 0:03:16]} Ne8 {[%emt 0:02:46]} 25. Rfg1 {[%emt 0:01:42]
} Ng7 {[%emt 0:03:11]} 26. Rxf3 {[%emt 0:03:40]} Rxf3 {[%emt 0:00:00]} 27. Rg3
{[%emt 0:00:09]} Rf7 {[%emt 0:05:17]} 28. f4 {[%emt 0:02:23]} e4 {[%emt 0:00:
08]} ({Of course not} 28... Nf5 $6 29. fxe5 dxe5 30. Rf3 $11) 29. Ka2 {[%emt 0:
02:10]} Nf5 {[%emt 0:00:46]} 30. Rg5 {[%emt 0:00:26]} Qe7 {[%emt 0:00:30]} 31.
Ne2 {[%emt 0:01:09]} Qf6 {[%emt 0:02:16]} 32. Qc1 {[%emt 0:00:00]} h6 {[%emt 0:
03:09]} 33. Rg1 {[%emt 0:02:22] [#]} Kh7 $1 {[%emt 0:01:38] And now ...Qh4
would win.} 34. Rg2 {[%emt 0:02:35] [#]} (34. Rh1 $142) 34... h4 $1 $19 {
[%emt 0:00:20][%cal Yh5h4,Yh4h3,Yh3g2]} 35. Bd2 {[%emt 0:00:00]} Bh5 {[%emt 0:
01:47]} 36. Bc3 {[%emt 0:00:21]} Qe7 {[%emt 0:00:40] Threatens to win with ...
h3.} 37. Bb2 $2 {[%emt 0:00:49]} (37. Ng1) 37... h3 {[%emt 0:00:47] Black is
clearly winning.} 38. Qc3 {[%emt 0:03:33][%csl Gb2][%cal Rc3h8]} hxg2 {[%emt 0:
00:07]} 39. Qh8+ {[%emt 0:00:06]} Kg6 {[%emt 0:00:00]} 40. Qg8+ {[%emt 0:00:04]
[#]} Rg7 $1 {[%emt 0:00:53]} 41. Bxg7 {[%emt 0:00:00]} Qf7 {[%emt 0:30:14]
Weighted Error Value: White=0.60/Black=0.08 (flawless)} 0-1

[Event "44th Chess Olympiad Open 2022"]
[Site "Chennai"]
[Date "2022.07.29"]
[Round "1.11"]
[White "Mohamed Saeed Laily"]
[Black "Adhiban, B..."]
[Result "0-1"]
[WhiteElo "2030"]
[BlackElo "2598"]
[Annotator "ChessBase"]
[PlyCount "50"]
[EventDate "2022.??.??"]
[TimeControl "60"]

1. d4 {[%emt 0:00:02]} e6 {[%emt 0:00:36]} 2. e4 {[%emt 0:00:10]} d5 {[%emt 0:
00:00]} 3. Nc3 {[%emt 0:00:07]} Nf6 {[%emt 0:00:30]} 4. e5 {[%emt 0:00:11]}
Nfd7 {[%emt 0:00:04]} 5. f4 {[%emt 0:00:05]} c5 {[%emt 0:00:14]} 6. Nf3 {
[%emt 0:00:09]} Nc6 {[%emt 0:00:05]} 7. Be3 {[%emt 0:00:07]} Be7 {[%emt 0:00:
00]} 8. Qd2 {[%emt 0:02:23]} O-O {[%emt 0:00:26]} 9. Bd3 {[%emt 0:07:28]} f6 {
[%emt 0:10:31]} 10. exf6 {[%emt 0:23:45]} Bxf6 {[%emt 0:05:05]} 11. Be2 {
[%emt 0:10:13]} cxd4 {[%emt 0:10:30]} 12. Nxd4 {[%emt 0:00:24]} Bxd4 {[%emt 0:
00:00]} 13. Bxd4 {[%emt 0:00:13]} e5 {[%emt 0:00:36]} 14. Bxe5 {[%emt 0:09:32]}
Ndxe5 {[%emt 0:00:34]} 15. fxe5 {[%emt 0:00:18]} d4 {[%emt 0:01:38]} 16. Nb5 {
[%emt 0:20:26]} Be6 {[%emt 0:11:35]} 17. O-O-O {[%emt 0:09:17]} Rf2 {[%emt 0:
00:00]} 18. Qe1 {[%emt 0:08:52]} Rf5 {[%emt 0:14:56]} 19. Qd2 {[%emt 0:02:09]}
Qd5 {[%emt 0:12:57]} 20. b3 {[%emt 0:00:44]} Rf2 {[%emt 0:00:17]} 21. Qe1 {
[%emt 0:02:45]} Qxg2 {[%emt 0:01:35]} 22. Rd2 {[%emt 0:01:30]} Raf8 {[%emt 0:
00:00]} 23. Nc7 {[%emt 0:00:24]} d3 {[%emt 0:02:04]} 24. Nxe6 {[%emt 0:00:39]}
dxe2 {[%emt 0:00:16]} 25. Nxf8 {[%emt 0:00:35]} Qxh1 {[%emt 0:03:10]} 0-1

[Event "44th Chess Olympiad Open 2022"]
[Site "Chennai"]
[Date "2022.07.29"]
[Round "1.12"]
[White "Melkumyan, Hrant"]
[Black "Rakotomaharo, Fy Antenaina"]
[Result "1-0"]
[WhiteElo "2634"]
[BlackElo "2490"]
[Annotator "TA"]
[PlyCount "133"]
[EventDate "2022.??.??"]
[TimeControl "60"]

{[%evp 15,133,6,17,8,18,10,17,16,21,14,16,19,32,18,18,15,18,-8,18,7,14,13,16,4,
8,8,8,22,57,54,52,40,68,4,0,0,0,0,14,8,8,0,0,-19,-13,-31,-27,-28,-26,-58,-52,
-56,-33,-60,0,-72,-70,-78,-44,-44,-38,-74,29,27,224,219,187,111,120,120,443,
430,430,436,436,429,429,422,423,423,554,545,538,538,460,310,545,545,538,310,
689,759,679,630,984,882,1042,1019,984,564,984,882,970,1061,1024,999,984,984,
929,897,29974,802,29973,29973,6282,802,740,564,5126,1574]} 1. c4 {[%emt 0:00:
00]} e6 {[%emt 0:00:47]} 2. Nc3 {[%emt 0:00:39]} d5 {[%emt 0:00:14]} 3. d4 {
[%emt 0:00:14]} Nf6 {[%emt 0:01:17]} 4. cxd5 {[%emt 0:00:15]} exd5 {[%emt 0:00:
00]} 5. Bg5 {[%emt 0:00:09]} c6 {[%emt 0:00:05]} 6. e3 {[%emt 0:00:10]} h6 {
[%emt 0:00:31]} 7. Bh4 {[%emt 0:00:10]} Be7 {[%emt 0:00:04]} 8. Bd3 {[%emt 0:
00:00]} O-O {[%emt 0:00:08]} 9. Nge2 {[%emt 0:00:35] D35: Queen's Gambit
Declined: Exchange Variation.} Re8 {[%emt 0:04:39]} 10. O-O {[%emt 0:01:53]} a5
{[%emt 0:00:06]} 11. h3 {[%emt 0:09:23] The position is equal.} Nbd7 {[%emt 0:
00:00][%cal Yb8d7,Yd7f8,Yf8e6]} 12. Bg3 {[%emt 0:01:01]} Nf8 {[%emt 0:00:00]}
13. Qc2 {[%emt 0:07:30]} Ne6 {[%emt 0:02:14]} 14. a3 {[%emt 0:05:26]} Bf8 {
[%emt 0:25:23] [#]} 15. Rab1 $146 {[%emt 0:04:57]} ({Predecessor:} 15. Rac1 Ng5
16. Be5 Nd7 17. Bg3 Nf6 18. Bh2 Bd7 19. Be5 Nfe4 20. Kh1 Nxc3 21. Nxc3 {
½-½ (29) Eigenmann,W (2135)-Quiroga Martinez,J (2108) ICCF email 2021}) 15...
Ng5 {[%emt 0:02:46]} 16. b4 {[%emt 0:03:52]} Nge4 {[%emt 0:06:27]} 17. Nxe4 {
[%emt 0:04:43]} dxe4 {[%emt 0:08:13]} 18. Bc4 {[%emt 0:00:13]} Nd5 {[%emt 0:00:
05]} (18... b5 $5 {[%cal Rb5c4]} 19. Bb3 Bb7 $11) 19. Nf4 {[%emt 0:00:00]} Nxf4
{[%emt 0:19:50]} 20. Bxf4 {[%emt 0:00:09]} b5 $132 {[%emt 0:00:05] Black is
not holding back} 21. Bb3 {[%emt 0:06:09]} Ra6 {[%emt 0:00:00]} 22. Be5 {
[%emt 0:04:28]} axb4 {[%emt 0:02:30]} 23. axb4 {[%emt 0:00:13]} Be6 {[%emt 0:
01:50]} 24. Bxe6 {[%emt 0:01:18]} ({White should try} 24. Qxe4 $14 Bxb3 25.
Rxb3) 24... Rxe6 $11 {[%emt 0:00:04]} 25. Qxe4 {[%emt 0:01:37]} Ra4 {[%emt 0:
00:12]} 26. Rfc1 {[%emt 0:01:33]} Qe8 {[%emt 0:00:36] Hoping for . ..f6.} 27.
Qg4 {[%emt 0:10:09]} Rg6 {[%emt 0:00:21]} 28. Qf3 {[%emt 0:00:53]} Bxb4 {
[%emt 0:01:30]} 29. h4 {[%emt 0:04:42]} Bf8 {[%emt 0:00:37]} 30. Qf5 {[%emt 0:
04:36][%cal Yd4d5]} Re6 {[%emt 0:02:13]} 31. Bf4 {[%emt 0:04:42]} b4 {[%emt 0:
00:59]} 32. h5 {[%emt 0:01:16]} Qd8 {[%emt 0:01:31]} 33. Qg4 {[%emt 0:00:00]}
Qd5 {[%emt 0:00:40]} 34. Be5 {[%emt 0:00:53]} b3 {[%emt 0:01:37]} (34... Ra3
$15) 35. Qd1 {[%emt 0:06:48]} (35. e4 $11 Qb5 36. Kh2) 35... Rb4 $1 $17 {
[%emt 0:00:17] ...b2 is the strong threat.} 36. Bf4 {[%emt 0:00:40]} b2 {
[%emt 0:01:07]} (36... Re8 $5 {[%cal Re8a8]} 37. Rb2 Ra8 $15) 37. Rc2 {[%emt 0:
00:00][%cal Yc1c2,Yc2d2,Yd2d8]} Qa2 {[%emt 0:00:31]} 38. Rd2 {[%emt 0:00:00]}
c5 {[%emt 0:00:34]} (38... Rb5 $17) 39. dxc5 $11 {[%emt 0:00:32] Strongly
threatening Rd8.} Rc6 $2 {[%emt 0:00:32]} (39... Bxc5 40. Qc2 Bf8 41. Rxb2 Rxb2
42. Qxb2 Qxb2 43. Rxb2 $16) (39... Be7 $1 $11 {and Black stays safe.}) 40. Rd8
$1 $18 {[%emt 0:00:54][%cal Yd8f8]} (40. Be5 $6 Rxc5 41. Rbxb2 (41. Rdxb2 Rxb2
42. Rxb2 Rd5 $14) 41... Qa5 $16) 40... Qa5 {[%emt 0:00:30] [#]} 41. Be5 {
[%emt 0:31:26]} ({White should play} 41. Qd5 $1 $18 {Threatens to win with
Rxf8+.} Rxf4 42. Rxb2 (42. exf4 Rxc5 43. Rxf8+ Kxf8 $11) 42... Rxc5 {[#]} 43.
Rbb8 $1 (43. Rxf8+ Kxf8 44. Rb8+ Ke7 $11) 43... Rc1+ 44. Kh2 Rh4+ 45. Kg3 Rxh5
46. Rxf8+ Kh7 47. Qe4+ (47. Qxf7 Qc7+ 48. Qxc7 Rg5+ 49. Kf4 Rxc7 $16) (47. Rh8+
Kg6 $16) 47... Rf5 48. Rxf7 Qe5+ 49. Qxe5 Rxe5 50. Kf3) 41... Rxc5 {[%emt 0:10:
56][%cal Ya5d8] White must now prevent ...Qxd8!} 42. Bxb2 {[%emt 0:00:00] And
now Ra1 would win.} Rcb5 $2 (42... Qc7 $16) 43. Ra1 {[%emt 0:00:00]} ({Not} 43.
Qd6 Qxd8 44. Qxd8 Rxb2 45. Rxb2 Rxb2 $18) 43... Qxd8 44. Qxd8 {[%emt 0:00:00]
[%cal Ya1a8] White threatens Ra8! and mate.} Rb8 {[#]} 45. Qd5 {[%emt 0:00:00]}
R4b5 {[#]} 46. Qf3 {[%emt 0:00:00]} Rxb2 47. Ra7 {[%emt 0:00:00]} f6 48. g3 {
[%emt 0:00:00]} R2b5 49. Kg2 {[%emt 0:00:00]} Re5 50. Qg4 {[%emt 0:00:00]} Rbe8
$2 (50... Kh8 51. Rd7 Rg5) 51. Qc4+ {[%emt 0:00:00]} Kh8 52. Qf7 {[%emt 0:00:
00]} R5e6 $2 {[#]} (52... Rd8 53. g4 Rb5) 53. Ra8 $3 {[%emt 0:00:00]} Rxa8 54.
Qxe6 {[%emt 0:00:00] Endgame KQ-KRB} Ra3 55. f4 {[%emt 0:00:00]} Kh7 56. Kh3 {
[%emt 0:00:00]} Ra5 57. Kg4 {[%emt 0:00:00]} Rc5 58. Qf7 {[%emt 0:00:00]} Bd6
59. e4 {[%emt 0:00:00]} Ra5 60. Qg6+ {[%emt 0:00:00]} Kh8 61. Qe8+ {[%emt 0:00:
00]} Kh7 62. Qd8 {[%emt 0:00:00]} Ra6 63. Kf5 {[%emt 0:00:00]} (63. Qd7 $142
Rb6 64. e5 fxe5 65. fxe5 Bf8 66. e6 Rd6 67. Qf7 Rd8 68. e7 Bxe7 69. Qxe7) 63...
Rc6 64. Qd7 {[%emt 0:00:00]} Rb6 65. Qe8 {[%emt 0:00:00]} (65. Ke6 $142 Bb4+
66. Kf7) 65... Ra6 66. Qb5 {[%emt 0:00:00]} Ra3 67. Ke6 {[%emt 0:00:00]
Weighted Error Value: White=0.20 (precise) /Black=0.44} 1-0

[Event "44th Chess Olympiad Open 2022"]
[Site "Chennai"]
[Date "2022.07.29"]
[Round "1.12"]
[White "Petrosyan, Manuel"]
[Black "Razanadrakotoarisoa, Toavina"]
[Result "1-0"]
[WhiteElo "2610"]
[BlackElo "2039"]
[Annotator "TA"]
[PlyCount "93"]
[EventDate "2022.??.??"]
[TimeControl "60"]

{[%evp 13,93,20,18,27,28,30,36,34,34,25,27,18,27,2,10,4,12,15,26,10,19,16,44,
18,24,21,19,13,24,16,27,19,31,20,37,39,33,16,35,29,55,27,34,41,37,36,59,28,33,
31,44,40,135,135,162,139,151,138,207,158,150,156,351,351,342,347,360,337,345,
351,348,349,588,574,622,638,1099,716,1389,1298,1188,1137]} 1. d4 {[%emt 0:00:
00]} Nf6 {[%emt 0:00:18]} 2. c4 {[%emt 0:00:43]} e6 {[%emt 0:00:13]} 3. Nc3 {
[%emt 0:00:07]} d5 {[%emt 0:00:21]} 4. cxd5 {[%emt 0:00:57]} exd5 {[%emt 0:00:
00]} 5. Bg5 {[%emt 0:00:13]} Be7 {[%emt 0:00:11]} 6. e3 {[%emt 0:00:21]} Nbd7 {
[%emt 0:00:26][%cal Yb8d7,Yd7f8,Yf8e6,Ye6c5,Yc5e4]} 7. Bd3 {[%emt 0:00:00]} c6
{[%emt 0:00:41]} 8. h3 {[%emt 0:03:57] D35: Queen's Gambit Declined: Exchange
Variation.} h6 {[%emt 0:01:01]} 9. Bf4 {[%emt 0:00:14]} Nf8 {[%emt 0:00:00]}
10. Nf3 {[%emt 0:01:36] White is slightly better.} Ne6 {[%emt 0:01:28]} 11. Bh2
{[%emt 0:07:56]} O-O {[%emt 0:10:43]} 12. Qc2 {[%emt 0:04:43] [#]} Bd6 $146 {
[%emt 0:05:12]} ({Predecessor:} 12... b6 13. O-O Bb7 14. Rad1 c5 15. dxc5 bxc5
16. Bf5 Qb6 17. Na4 Qa5 18. b3 Rfd8 {1-0 (39) Vrolijk,L (2480)-Colas,J (2255)
Chess.com INT 2020}) 13. Ne5 {[%emt 0:02:34]} c5 {[%emt 0:01:32]} 14. dxc5 {
[%emt 0:01:51]} Nxc5 {[%emt 0:06:42]} 15. O-O {[%emt 0:02:31]} Re8 {[%emt 0:14:
40]} 16. Nf3 {[%emt 0:06:35]} Bxh2+ {[%emt 0:01:47]} 17. Kxh2 {[%emt 0:00:10]}
Nce4 {[%emt 0:12:05]} 18. Nb5 {[%emt 0:10:51] Hoping for Nc7.} Bd7 {[%emt 0:08:
09]} 19. Nbd4 {[%emt 0:05:36]} Rc8 {[%emt 0:00:56]} 20. Qe2 {[%emt 0:00:25]}
Qc7+ {[%emt 0:00:35]} 21. Kg1 {[%emt 0:00:38]} a6 {[%emt 0:00:00]} 22. Rfe1 {
[%emt 0:02:46]} Ng5 {[%emt 0:03:34]} 23. Rad1 {[%emt 0:09:36]} Nfe4 {[%emt 0:
01:29]} 24. Nxg5 {[%emt 0:01:24]} hxg5 {[%emt 0:03:14]} 25. Bc2 {[%emt 0:11:32]
} Qe5 {[%emt 0:01:20]} 26. Bb3 {[%emt 0:01:21]} Be6 {[%emt 0:00:00]} 27. Rc1 {
[%emt 0:05:17]} g6 {[%emt 0:04:01]} 28. Rc2 {[%emt 0:04:55]} Rxc2 {[%emt 0:00:
22]} 29. Bxc2 {[%emt 0:01:17]} Nf6 {[%emt 0:01:50]} 30. Bd1 {[%emt 0:07:24]}
Ne4 {[%emt 0:01:50]} 31. Bb3 {[%emt 0:04:06]} Rc8 {[%emt 0:00:00]} 32. Rd1 {
[%emt 0:00:06]} Nf6 {[%emt 0:02:15] [#]} (32... Kg7 $14) 33. Nf3 $1 $16 {
[%emt 0:00:38]} Qf5 {[%emt 0:00:05] [#]} 34. g4 $1 {[%emt 0:01:27]} Qe4 {
[%emt 0:03:00][%cal Ye6g4]} 35. Nxg5 {[%emt 0:00:05]} Qb4 {[%emt 0:00:30]} (
35... Qe5 $16 {is a better defense.}) 36. Qd2 {[%emt 0:01:21]} Qe7 {[%emt 0:00:
00]} 37. Qd4 {[%emt 0:00:20]} Nd7 $2 {[%emt 0:00:30] A mistake that costs the
game.} (37... a5 $16 38. a4 Rc5) 38. Nxe6 $18 {[%emt 0:00:35]} ({Weaker is} 38.
Bxd5 Bxd5 39. Qxd5 Nf6 $18) 38... fxe6 {[%emt 0:00:06] [#]} 39. Bxd5 $1 {
[%emt 0:00:20][%cal Yb3d5,Yd5g2,Yg2e4,Ye4g6,Yg6d3]} Nf8 {[%emt 0:00:00]} (39...
Rc7 40. Qe4) 40. Bg2 {[%emt 0:00:20]} Rc2 {[%emt 0:00:28]} 41. Be4 {[%emt 0:30:
22]} Rc7 {[%emt 0:30:24]} 42. Qd8 {[%emt 0:00:43]} Qg7 {[%emt 0:00:00] [#]} (
42... Kf7 {was necessary.} 43. Qb8 g5) 43. Bxg6 $1 {[%emt 0:01:19] White is
clearly winning.} Rc4 {[%emt 0:00:08]} (43... Rc5 44. Be4) 44. b3 {[%emt 0:00:
00]} Rb4 {[%emt 0:00:00]} 45. Bd3 {[%emt 0:00:00]} Rxg4+ {[%emt 0:00:00]} 46.
hxg4 {[%emt 0:00:00]} Qxg4+ {[%emt 0:00:00]} 47. Kh2 {[%emt 0:00:00] Weighted
Error Value: White=0.08 (flawless) /Black=0.26 (precise)} 1-0

[Event "44th Chess Olympiad Open 2022"]
[Site "Chennai"]
[Date "2022.07.29"]
[Round "1.12"]
[White "Andrianiaina, Heritiana"]
[Black "Ter-Sahakyan, Samvel"]
[Result "0-1"]
[WhiteElo "2095"]
[BlackElo "2625"]
[Annotator "TA"]
[PlyCount "72"]
[EventDate "2022.??.??"]
[TimeControl "60"]

{[%evp 11,72,0,0,-2,0,0,12,14,24,12,10,-3,23,15,52,53,53,45,30,-39,-20,-122,
-121,-130,-127,-129,-129,-116,-122,-108,-111,-164,-151,-156,-156,-163,-147,
-173,-169,-308,-312,-358,-357,-288,-347,-609,-579,-683,-650,-845,-748,-664,
-633,-634,-622,-991,-813,-29976,-29977,-29977,-29978,-29978,-29979]} 1. d4 {
[%emt 0:00:47]} Nf6 {[%emt 0:00:11]} 2. c4 {[%emt 0:00:35]} e6 {[%emt 0:00:07]}
3. Nc3 {[%emt 0:00:43]} Bb4 {[%emt 0:00:17]} 4. Qc2 {[%emt 0:00:17]} d5 {
[%emt 0:03:06]} 5. a3 {[%emt 0:00:57]} Bxc3+ {[%emt 0:00:16]} 6. Qxc3 {[%emt 0:
00:00]} O-O {[%emt 0:02:05]} 7. e3 {[%emt 0:00:14] E36: Nimzo-Indian:
Classical: 4...d5 5 a3.} b6 {[%emt 0:04:16]} 8. cxd5 {[%emt 0:01:50]} exd5 {
[%emt 0:01:20] 8...Nxd5 might become the main line.} 9. Bd3 {[%emt 0:01:14]
The position is equal.} Ba6 {[%emt 0:12:44]} 10. Ne2 {[%emt 0:00:47]} c5 {
[%emt 0:03:16]} 11. b3 {[%emt 0:03:43] [#]} Qe7 $146 {[%emt 0:14:13]} (11...
Ne4 $5 {[%cal Re4c3]} 12. Qc2 cxd4 $11) ({Predecessor:} 11... cxd4 12. Nxd4 Qc8
13. Qxc8 Rxc8 14. Bxa6 Nxa6 15. Bb2 Nc5 16. Rd1 a5 17. f3 Rc7 {1-0 (33) So,W 
(2772)-Nakamura,H (2736) Chess.com INT 2021}) 12. dxc5 {[%emt 0:09:00]} Ne4 {
[%emt 0:13:59]} 13. Bxe4 {[%emt 0:00:32]} dxe4 {[%emt 0:00:04]} 14. Bb2 {
[%emt 0:11:47][%csl Gb2][%cal Rc3g7] [#]} f6 $1 {[%emt 0:00:12]} 15. Rd1 {
[%emt 0:01:36]} ({Don't play} 15. c6 Rc8 $11) (15. b4 $11 bxc5 16. b5 (16. bxc5
Nd7 $17) (16. Qxc5 Qxc5 17. bxc5 Nc6 $11)) 15... Nd7 {[%emt 0:05:32][%cal
Yb8d7,Yd7c5,Yc5b3,Yb3d2]} 16. Rd2 {[%emt 0:02:03] White is on the road to
losing.} (16. cxb6 $1 $11 Nc5 17. Nf4) 16... Nxc5 $17 {[%emt 0:04:49] Hoping
for ...Nd3+.} 17. O-O {[%emt 0:00:51] [#]} Qf7 $1 {[%emt 0:03:29] aiming for ..
.Rac8.} 18. Rfd1 {[%emt 0:16:34]} Bxe2 {[%emt 0:00:27] Black is more active.}
19. Rxe2 {[%emt 0:00:08]} Qxb3 {[%emt 0:00:16]} 20. Qxb3+ {[%emt 0:01:41]} Nxb3
{[%emt 0:00:06]} 21. g4 {[%emt 0:02:51]} (21. h4 $17) 21... Rfd8 {[%emt 0:01:
02]} 22. Rxd8+ {[%emt 0:00:47]} Rxd8 {[%emt 0:00:06] Endgame KRB-KRN} 23. Kg2 {
[%emt 0:00:04]} Rd2 {[%emt 0:03:33]} 24. Rxd2 {[%emt 0:00:05]} Nxd2 {[%emt 0:
00:03] KB-KN} 25. Bc3 {[%emt 0:01:06]} (25. Kg3 {is the only way for White.})
25... Nc4 $19 {[%emt 0:00:36]} 26. a4 {[%emt 0:00:17]} Kf7 {[%emt 0:00:33]} 27.
Kg3 {[%emt 0:03:09]} g5 {[%emt 0:00:00]} 28. h4 $2 {[%emt 0:06:16]} (28. f3
exf3 29. Kxf3) 28... Ke6 {[%emt 0:00:00]} 29. hxg5 {[%emt 0:01:52]} fxg5 {
[%emt 0:00:02]} 30. f3 {[%emt 0:01:15]} exf3 {[%emt 0:05:24]} 31. Kxf3 {
[%emt 0:00:10]} Ne5+ {[%emt 0:00:10]} 32. Kg3 {[%emt 0:00:37]} Kd5 {[%emt 0:03:
05] And now ...a6 would win.} 33. Bd4 {[%emt 0:00:00]} Ke4 {[%emt 0:04:09]} 34.
a5 {[%emt 0:01:30]} bxa5 {[%emt 0:00:21] Black mates.} 35. Bxa7 {[%emt 0:00:05]
} a4 {[%emt 0:00:04]} 36. Bc5 {[%emt 0:00:00]} Nc4 {[%emt 0:00:15] Weighted
Error Value: White=0.73/Black=0.04 (flawless)} 0-1